Cogmind - Beta 13 @@@ ROGUE MODE // 2024.04.16 @ 13:19:53 Player: meetlok Result: Destroyed by EX-DEC with AWS/EX-DEC Performance ------------- Evolutions (0) 0 Regions Visited (3) 600 Robots Destroyed (11) 55 Value Destroyed (135) 135 Prototype IDs (0) 0 Alien Tech Used (0) 0 Bonus (0) 0 TOTAL SCORE: 790 Bonus ------- None Cogmind --------- Core Integrity 0/250 Matter 227/450 Energy 66/100 System Corruption 9% Temperature Cool (5) Movement Core (1450) Ox28 Location -10/Exiles Parts ------- > --- POWER (1) -------- (None) > --- PROPULSION (2) --- (None) > --- UTILITY (2) ------ Huge Storage Unit Large Matter Pod > --- WEAPON (2) ------- Small Laser Light Assault Rifle > --- INVENTORY (25) --- Light Ion Engine Heat Sink Light Armor Plating Improved Light Armor Plating Light Assault Rifle Light Assault Rifle Datajack Mining Laser Proton Bomb Trap Proton Bomb Trap Proton Bomb Trap Peak State ------------ > --- POWER ------------ Light Deuterium Engine > --- PROPULSION ------- Light Treads Light Treads > --- UTILITY ---------- Huge Storage Unit Large Matter Pod > --- WEAPON ----------- Rocket Launcher Mini Grenade Launcher > --- INVENTORY -------- Light Ion Engine Heat Sink Light Armor Plating Improved Light Armor Plating Small Laser Light Assault Rifle Light Assault Rifle Light Assault Rifle Datajack Mining Laser Proton Bomb Trap Proton Bomb Trap Proton Bomb Trap [Rating: 12] Favorites ----------- Power Ion Engine Engine Ion Engine Propulsion Light Treads Treads Light Treads Utility Huge Storage Unit Storage Huge Storage Unit Weapon Small Laser Energy Gun Small Laser Ballistic Gun Light Assault Rifle Launcher Rocket Launcher Build | -11 -10 -10 -10 ------- Run | Yrd Mat Min Exi Slots Evolved . | . . . . Power . | . . . . Propulsion . | . . . . Utility . | . . . . Weapon . | . . . . Parts Attached 16 | 6 . 3 7 Power 2 | 1 . . 1 Engine 2 | 1 . . 1 Core . | . . . . Reactor . | . . . . Propulsion 3 | 2 . . 1 Treads 3 | 2 . . 1 Leg . | . . . . Wheel . | . . . . Hover . | . . . . Flight . | . . . . Utility 3 | 1 . 1 1 Device . | . . . . Storage 3 | 1 . 1 1 Processor . | . . . . Hackware . | . . . . Protection . | . . . . Artifact . | . . . . Weapon 8 | 2 . 2 4 Energy Gun 3 | 2 . . 1 Energy Cannon . | . . . . Ballistic Gun 3 | . . 2 1 Ballistic Cannon . | . . . . Launcher 2 | . . . 2 Special Weapon . | . . . . Impact Weapon . | . . . . Slashing Weapon . | . . . . Piercing Weapon . | . . . . Special Melee Weapon . | . . . . Unidentified Prototypes . | . . . . Parts Lost 8 | . . 1 7 Power 2 | . . . 2 Propulsion 3 | . . . 3 Utility . | . . . . Weapon 3 | . . 1 2 Highest Loss Streak 5 | . . 1 5 To Critical Strikes . | . . . . Average Slot Usage (%) 84 | . 85 84 84 Engine 13 | . 14 14 13 Treads 27 | . 28 28 27 Storage 14 | . 14 14 14 Energy Gun 15 | . 28 15 12 Ballistic Gun 11 | . . 12 12 Naked Turns . | . . . . Heaviest Build 93 | 13 13 87 93 Greatest Support 40 | 40 40 40 40 Greatest Overweight (x) 2 | . . 2 2 Average Overweight (x) 1 | . . 1 2 Largest Inventory Capacity 25 | 8 8 25 25 Average Capacity 20 | 6 8 20 25 Most Carried 16 | 2 6 16 16 Average Carried 12 | . 4 11 15 Final Capacity 25 | 8 8 25 25 Final Carried 16 | 2 6 16 11 Class Distribution -------------------- 100% | Mutant Dominant Class ---------------- Mutant | -10/Materials Mutant | -10/Mines Mutant | -10/Exiles Resources | -11 -10 -10 -10 ----------- Run | Yrd Mat Min Exi Matter Collected 457 | 199 . 258 . Remotely . | . . . . Salvage Created 185 | . . 151 34 Parts 38 | . . 17 21 Haulers Intercepted . | . . . . Recyclers Shooed 2 | . . 2 . Parts Field Recycled . | . . . . Retrieved Matter . | . . . . Parts Self-Destructed . | . . . . Prevented . | . . . . Kills | -11 -10 -10 -10 ------- Run | Yrd Mat Min Exi Combat Hostiles Destroyed 15 | . . 8 7 Guns 8 | . . 8 . AOE 7 | . . . 7 Classes Destroyed 4 | . . 3 1 Swarmer 6 | . . 6 . Demolisher 1 | . . 1 . Zionite 2 | . . . 2 Assembled 8 | . . 1 7 Best Kill Streak 8 | . . 3 8 Combat Bots Only 7 | . . 3 7 Max Kills in Single Turn 3 | . . 1 3 Gunslinging . | . . . . Exploded 3 | . . . 3 Melee . | . . . . Uniques/NPCs Destroyed 2 | . . . 2 EX-HEX (-10/Exiles) EX-BIN (-10/Exiles) Combat | -11 -10 -10 -10 -------- Run | Yrd Mat Min Exi Hostile Shots Fired 99 | . 6 42 51 Missed 19 | . 3 10 6 Damage Taken 1086 | . 39 321 726 Core 264 | . 15 18 231 Absorbed by Shields . | . . . . Core Remaining (%) 100 | 100 . . . Volleys Fired 36 | . . 26 10 Largest 2 | . . 2 2 Hottest 80 | . . 80 63 Shots Fired 70 | . . 50 20 Gun 55 | . . 50 5 Cannon . | . . . . Launcher 15 | . . . 15 Special . | . . . . Kinetic 21 | . . 18 3 Thermal 28 | . . 26 2 Explosive 15 | . . . 15 Electromagnetic 6 | . . 6 . Robot Hit Streak 6 | . . 6 6 Robot Miss Streak 3 | . . 3 3 Penetration Max . | . . . . Secondary Targets 1 | . . 1 . Max Gunslinging Chain 1 | . . 1 . Shots Hit Robots 38 | . . 27 11 Core Hits 39 | . . 11 28 Critical Kills . | . . . . Critical Parts Destroyed . | . . . . Critical Strikes . | . . . . Melee Attacks . | . . . . Impact . | . . . . Slashing . | . . . . Piercing . | . . . . Sneak Attacks . | . . . . Combat Hostiles . | . . . . Follow-up Attacks . | . . . . Damage Inflicted 1281 | . . 281 1000 Guns 294 | . . 276 18 Cannons . | . . . . Explosions 982 | . . . 982 Melee . | . . . . Ramming 5 | . . 5 . Kinetic 71 | . . 64 7 Thermal 189 | . . 178 11 Explosive 982 | . . . 982 Electromagnetic 34 | . . 34 . Impact . | . . . . Slashing . | . . . . Piercing . | . . . . Highest Corruption 8 | . 2 2 8 Average Corruption 2 | . 2 2 2 Corruption Purged . | . . . . Corruption Blocked . | . . . . Effects 19 | . 2 7 10 Message Errors 2 | . 1 . 1 Matter Fused 6 | . . 3 3 Heat Flow Errors 3 | . . 1 2 Energy Discharges 2 | . . 1 1 Data Loss (minor) 2 | . 1 . 1 Data Loss (major) 2 | . . 1 1 Misfires 1 | . . . 1 Weapon Failures 1 | . . 1 . Overload Shots . | . . . . Overflow Damage 36 | . . . 36 Projectiles . | . . . . Explosions 36 | . . . 36 Melee . | . . . . Knockbacks . | . . . . Impact . | . . . . Kinetic . | . . . . Secondary . | . . . . Self-Inflicted Damage 82 | . . . 82 Shots 2 | . . . 2 Rammed 4 | . . 4 . Targets Rammed 4 | . . 4 . Kicked . | . . . . Crushed . | . . . . Highest Temperature 256 | . . 256 238 Average Temperature 54 | . . 43 77 Received Heat Transfer 64 | . 24 . 40 Siege Activations . | . . . . Robots Corrupted . | . . . . Combat Hostiles . | . . . . Parts Fried . | . . . . Impact Corruptions . | . . . . Robots Melted . | . . . . Combat Hostiles . | . . . . Parts Melted . | . . . . Heat Transferred 425 | . . 400 25 Parts Sabotaged . | . . . . Parts Stolen . | . . . . Parts Stripped . | . . . . Power Chain Reactions . | . . . . Alert | -11 -10 -10 -10 ------- Run | Yrd Mat Min Exi Peak Influence 100 | . 15 100 . Initial 5 | . . 5 . Average 29 | . 13 34 . Maximum Alert Level . | . . . . Low Security (%) 100 | 100 100 100 . Level 1 . | . . . . Level 2 . | . . . . Level 3 . | . . . . Level 4 . | . . . . Level 5 . | . . . . High Security . | . . . . Max Security . | . . . . Squads Dispatched . | . . . . Investigation . | . . . . Extermination . | . . . . Reinforcement . | . . . . Assault . | . . . . Garrison . | . . . . Intercept . | . . . . Searches Triggered . | . . . . Construction Impeded . | . . . . Haulers Reinforced . | . . . . Active Scanning Responses . | . . . . Cargo Convoy Interrupts . | . . . . Stealth | -11 -10 -10 -10 --------- Run | Yrd Mat Min Exi Distress Signals . | . . . . Communications Jammed . | . . . . Distress Signals . | . . . . Times Spotted 30 | . 4 11 15 Peak Tracking Total 17 | . 3 3 17 Tactical Retreats 4 | . . 2 2 Traps | -11 -10 -10 -10 ------- Run | Yrd Mat Min Exi Traps Triggered 1 | . 1 . . Indirectly . | . . . . Trap Hack Attempts . | . . . . Triggered . | . . . . Disarmed . | . . . . Reprogrammed . | . . . . Reused . | . . . . Traps Extracted . | . . . . Installed . | . . . . Triggered . | . . . . Most Traps Carried 3 | . . 3 3 Machines | -11 -10 -10 -10 ---------- Run | Yrd Mat Min Exi Machines Disabled 14 | . . . 14 Max in Single Turn 6 | . . . 6 Machines Repaired . | . . . . Machines Dismantled . | . . . . Machines Sabotaged . | . . . . Overloaded Fab Kills . | . . . . Hacking | -11 -10 -10 -10 --------- Run | Yrd Mat Min Exi Machines Accessed 2 | . 1 1 . Terminals 1 | . . 1 . Fabricators . | . . . . Repair Stations . | . . . . Recycling Units 1 | . 1 . . Scanalyzers . | . . . . Garrison Access . | . . . . Total Hacks 9 | . 7 2 . Successful 7 | . 6 1 . Failed 2 | . 1 1 . Catastrophic 1 | . . 1 . Database Lockouts . | . . . . Manual 1 | . . 1 . Terminals 2 | . . 2 . Fabricators . | . . . . Repair Stations . | . . . . Recycling Units 7 | . 7 . . Scanalyzers . | . . . . Garrison Access . | . . . . Terminal Hacks 1 | . . 1 . Zone Layout 1 | . . 1 . Fabricator Hacks . | . . . . Repair Station Hacks . | . . . . Recycling Unit Hacks 6 | . 6 . . Report Inventory 5 | . 5 . . Retrieve Components 1 | . 1 . . Scanalyzer . | . . . . Garrison Access Hacks . | . . . . Unauthorized Hacks . | . . . . Terminals . | . . . . Fabricators . | . . . . Repair Stations . | . . . . Recycling Units . | . . . . Scanalyzers . | . . . . Garrison Access . | . . . . Data Cores Recovered . | . . . . Used . | . . . . Hacking Detections 2 | . 1 1 . Full Trace Events . | . . . . Feedback Events . | . . . . Feedback Blocked . | . . . . Robot Schematics Acquired . | . . . . Robots Built . | . . . . Authchips . | . . . . Time . | . . . . Total Robot Build Rating . | . . . . Part Schematics Acquired . | . . . . Parts Built . | . . . . Authchips . | . . . . Time . | . . . . Total Part Build Rating . | . . . . Parts Repaired . | . . . . Time . | . . . . Parts Recycled . | . . . . Recycled Matter . | . . . . Retrieved Matter . | . . . . Retrieved Components 2 | . 2 . . Parts Scanalyzed . | . . . . Part Schematics Acquired . | . . . . Parts Damaged . | . . . . Bothacking | -11 -10 -10 -10 ------------ Run | Yrd Mat Min Exi Used RIF Installer . | . . . . Robots Hacked . | . . . . Non-combat . | . . . . Combat . | . . . . Robot Hacks Applied . | . . . . Relay Couplers Released . | . . . . Fabnet Peak Effective % . | . . . . Robots Rewired . | . . . . Allies Hacked . | . . . . Hacks Repelled . | . . . . Allies | -11 -10 -10 -10 -------- Run | Yrd Mat Min Exi Total Allies . | . . . . Largest Group . | . . . . Highest-Rated Group . | . . . . Highest-Rated Ally . | . . . . Total Orders . | . . . . Ally Attacks . | . . . . Total Damage . | . . . . Kills . | . . . . Allies Corrupted . | . . . . Allies Melted . | . . . . Intel | -11 -10 -10 -10 ------- Run | Yrd Mat Min Exi Robot Analysis Total . | . . . . Derelict Logs Recovered 1 | . . 1 . Drone Launches . | . . . . Drone Recoveries . | . . . . Exploration | -11 -10 -10 -10 ------------- Run | Yrd Mat Min Exi Turns Passed 1693 | 57 141 865 630 Spaces Moved 601 | 33 86 296 186 Core 5 | 5 . . . Treads 596 | 28 86 296 186 Legs . | . . . . Wheels . | . . . . Hover . | . . . . Flight . | . . . . Fastest Speed 50 | 50 160 160 320 Average Speed 257 | 143 160 260 320 Slowest Speed 320 | 160 160 320 320 Overloaded Moves . | . . . . Propulsion Burnouts . | . . . . Robots Hopped . | . . . . Cave-ins Triggered . | . . . . Exploration Rate (%) 36 | 3 18 58 67 Regions Visited 3 Branch Regions 2 Pre-discovered Areas . | . . . . Known Exits Taken . | . . . . Unknown Exits Taken 3 | 1 1 1 . Scrap Searched 1 | . . 1 . Spaces Dug . | . . . . Terrain Destroyed 37 | . . . 37 Melee . | . . . . Projectile . | . . . . AOE 37 | . . . 37 Terrain Rammed . | . . . . Walls Destroyed . | . . . . Machines Disabled . | . . . . Actions | -11 -10 -10 -10 --------- Run | Yrd Mat Min Exi Total 677 | 40 90 344 203 Wait 5 | . 1 4 . Move 598 | 32 85 295 186 Hop . | . . . . Pick Up 16 | 2 4 10 . Fast Attach 7 | 6 . 1 . Attach 6 | . . 1 5 Detach 1 | . . 1 . Swap 3 | . . 1 2 Drop 1 | . . 1 . Fire 36 | . . 26 10 Melee . | . . . . Ram . | . . . . Kick . | . . . . Crush 4 | . . 4 . Escape Stasis . | . . . . Rewire . | . . . . Trap . | . . . . Miscellaneous . | . . . . Route ------- -11/Scrapyard -10/Materials -10/Mines (discovered 3 exits: [*Mat x2] / [*Exi]) -10/Exiles History --------- Turn | Location | Event 16 | -11/Scrapyard | Discovered new exit (range 14) 58 | -11/Scrapyard | Entered Materials 108 | -10/Materials | Discovered new exit (range 9) 112 | -10/Materials | Met 8R-AWN 199 | -10/Materials | Entered Mines 201 | -10/Mines | Followed 8R-AWN into the Mines 206 | -10/Mines | Received a Rocket Launcher from a helpful Derelict 278 | -10/Mines | Discovered new exit (range 2) 311 | -10/Mines | Assembled infested the area 316 | -10/Mines | Assisted by a Guerilla fighting off Assembled 326 | -10/Mines | Build established: Mutant 419 | -10/Mines | Found a hidden stash of uninstalled traps 737 | -10/Mines | Learned Materials terminal intel 766 | -10/Mines | Discovered new exit (range 10) 791 | -10/Mines | Discovered new exit (range 5) 1064 | -10/Mines | Entered Exiles 1141 | -10/Exiles | Welcomed by 8R-AWN 1192 | -10/Exiles | Learned about 8R-AWN's background 1205 | -10/Exiles | Met EX-HEX 1368 | -10/Exiles | Met EX-DEC 1465 | -10/Exiles | Visited The Gauntlet 1614 | -10/Exiles | Attacked by the Exiles 1653 | -10/Exiles | Core integrity fell below 50% 1679 | -10/Exiles | Destroyed 7 combat bots 1683 | -10/Exiles | Destroyed EX-HEX 1686 | -10/Exiles | Destroyed EX-BIN 1691 | -10/Exiles | Core integrity fell below 20% 1694 | -10/Exiles | Destroyed by EX-DEC with AWS/EX-DEC Last Messages --------------- 5L-KAT destroyed. Testing Apparatus damaged. The unstable cave ceiling collapses. System corrupted: Component data lost. EX-BIN: "I just want to science!" Machine disabled. Testing Chamber Shield damaged. EX-HEX destroyed. Testing Apparatus damaged. Lgt. Treads destroyed. Destroyed EX Chip 2. EX-BIN: "You can't kill me, my evil twin will get revenge!" EX-BIN destroyed. Lgt. Treads destroyed. Mni. Grenade Launcher destroyed. Lgt. Deuterium Engine destroyed. Rocket Launcher destroyed. The unstable cave ceiling collapses. Penetrated by HV Slug. Map ----- +----------------------------------------------------+ | ??????????????????????????????#"""" | | ??????????????????????????????#"" "" | | ??????????????????????????????#" """"# | | ??????????????????????????????#""" """# | | ???????????????????????????????# ""## | | ???????????????????????????????#"" """##? | | ???????????????????????????????##""" ##?? | | ????????????????????????????????##"""" ##??? | | ?????????????????????????????????### #???? | | ???????????????????????????????????##### ##???? | | ???????????????????????????????????????## #????? | | ????????????????????????????????????????# #????? | | ????????????????????????????????????????# #????? | | ????????????????????????????????????????# #????? | | ?????????#####?????????####????###??????# #????? | | ????????""""""??????""""""#???"""""?????# #????? | | ????????"" "???##"""""""####"""""""???# #????? | | ????????" ??"""""""" # #" """"#??# #????? | | ????????"" "?#""#""" #"" """???# #????? | | ????????"" "?#""#" #" ""##?# #????? | | ??########"""###""## # ## ###### | | ??#"""" "" """" "" ! g" """""" | | ??#" """ * | | ???""" c | | ??#"""" = | | ??#"" @ | | ??#""" "" | | ??#"" """ """" " """" | | ??########"""#### ## " ######"""#### | | ????????"" "??### "#" ""#???"" ""#? | | ???????#""" ""????#" ""#""" ""???#"" """#? | | ???????#" """ "???# ""#" " "#??#"""""""#? | | ????????"""""""???#" ""#"""""""????"" """"#? | | ????????"""""""???#"""" #""#"""""""#???"""""""?? | | ??????????????????####"####""#??##?#??????####???? | | ?????????????????????"""???""????????????????????? | | ??????????????????????"??????????????????????????? | | ?????????????????????????????????????????????????? | | ?????????????????????????????????????????????????? | | | | | | | | | | | | | | | | | | | | | | | +----------------------------------------------------+ Best States ------------- Heat Dissipation 25 Energy Generation 14 Energy Capacity 250 Matter Stores 300 Matter Capacity 450 Sight Range 16 Terrain Scan Density 10 Evasion (%) 40 Recoil Reduction 2 Item Schematics ----------------- None Robot Schematics ------------------ None Fabricated ------------ Nothing Alien Tech Used ----------------- None Achievements -------------- None Challenges ------------ None Game ------ Seed SingularityKineticBooster Manual? 0 Play Time 00:18:11 Cumulative 32.8 hours Start 2024.04.16 @ 12:59:18 End 2024.04.16 @ 13:19:53 Sessions 1 Manual Loads 0 Difficulty Rogue Special Mode None Game No. 19 Rogue 19 Adventurer 0 Explorer 0 Win Type - Total 0 Types 0/0/0/0/0/0/0/0/0 Lore% 12 Gallery% 24 Achievement% 16 Wizard Run 0 Options --------- Layout 1 ASCII 0 Keyboard 1 Movement Numpad Keybinds 0 Fullscreen 1 Font 24/Smallcaps Map View 50x35 Zoom Use 0% Tactical HUD 0 Map Filters NONE Filters NONE Steam 1 RUN: 168252d3-cbd2-4e1d-8b30-c3d2ebd30626